fUST/lending_fUST_20250103
["ID","MTS","AMOUNT","RATE_DAILY","PERIOD"]
[347466900,1735840245424,-500.0,0.0002,3]
[347466901,1735840245434,-500.0,0.0002,3]
[347466902,1735840245444,-500.0,0.0002,3]
[347466903,1735840245458,-500.0,0.0002,3]
[347466904,1735840245468,-500.0,0.0002,3]
[347466905,1735840245477,-500.0,0.0002,3]
[347466906,1735840245486,-916.43,0.0002,3]
[347466907,1735840245495,-500.0,0.0002,3]
[347466908,1735840245505,-500.0,0.0002,3]
[347466909,1735840245514,-500.0,0.0002,3]
[347466910,1735840245524,-500.0,0.0002,3]
[347466911,1735840245533,-500.0,0.0002,3]
[347466912,1735840245543,-500.0,0.0002,3]
[347466913,1735840245551,-500.0,0.0002,3]
[347466914,1735840245563,-500.0,0.0002,3]
[347466915,1735840245572,-500.0,0.0002,3]
[347466916,1735840245581,-500.0,0.0002,3]
[347466917,1735840245591,-500.0,0.0002,3]
[347466919,1735840245600,-500.0,0.0002,3]
[347466920,1735840245609,-500.0,0.0002,3]
[347466921,1735840245618,-500.0,0.0002,3]
[347466922,1735840245628,-500.0,0.0002,3]
[347466923,1735840245637,-500.0,0.0002,3]
[347466924,1735840245646,-500.0,0.0002,3]
[347466926,1735840245655,-500.0,0.0002,3]
[347466928,1735840245665,-500.0,0.0002,3]
[347466929,1735840245675,-500.0,0.0002,3]
[347466930,1735840245684,-500.0,0.0002,3]
[347466932,1735840245694,-500.0,0.0002,3]
[347466933,1735840245780,-500.0,0.0002,3]
[347466934,1735840245791,-500.0,0.0002,3]
[347466935,1735840245800,-500.0,0.0002,3]
[347466937,1735840245813,-500.0,0.0002,3]
[347466938,1735840245822,-500.0,0.0002,3]
[347466940,1735840245831,-500.0,0.0002,3]
[347466942,1735840245840,-500.0,0.0002,3]
[347466943,1735840245850,-500.0,0.0002,3]
[347466944,1735840245859,-500.0,0.0002,3]
[347466945,1735840245868,-500.0,0.0002,3]
[347466946,1735840245878,-500.0,0.0002,3]
[347466947,1735840245887,-500.0,0.0002,3]
[347466948,1735840245896,-500.0,0.0002,3]
[347466949,1735840245907,-500.0,0.0002,3]
[347466950,1735840245916,-452.37556884,0.0002,3]
[347466951,1735840245925,-500.0,0.0002,3]
[347466952,1735840245934,-500.0,0.0002,3]
[347466954,1735840245943,-500.0,0.0002,3]
[347466955,1735840245952,-500.0,0.0002,3]
[347466956,1735840245962,-500.0,0.0002,3]
[347466957,1735840245971,-500.0,0.0002,3]
[347466958,1735840245980,-500.0,0.0002,3]
[347466959,1735840245990,-500.0,0.0002,2]
[347466960,1735840245999,-382.46605789,0.0002,3]
[347466961,1735840246009,-500.0,0.0002,3]
[347466962,1735840246019,-500.0,0.0002,3]
[347466963,1735840246028,-500.0,0.0002,3]
[347466964,1735840246038,-500.0,0.0002,3]
[347466965,1735840246047,-500.0,0.0002,3]
[347466966,1735840246058,-500.0,0.0002,3]
[347466967,1735840246068,-500.0,0.0002,3]
[347466968,1735840246077,-500.0,0.0002,3]
[347466970,1735840246086,-5641.06,0.0002,3]
[347466971,1735840246095,-511.44913008,0.0002,3]
[347466972,1735840246104,-581.62,0.0002,3]
[347466973,1735840246113,-500.0,0.0002,3]
[347466974,1735840246123,-500.0,0.0002,3]
[347466975,1735840246132,-21350.1,0.0002,3]
[347466976,1735840246141,-500.0,0.0002,2]
[347466977,1735840246150,-500.0,0.0002,3]
[347466978,1735840246160,-739.51,0.0002,3]
[347466979,1735840246170,-500.0,0.0002,3]
[347466980,1735840246179,-500.0,0.0002,3]
[347466981,1735840246189,-500.0,0.0002,3]
[347466982,1735840246198,-2208.67,0.0002,3]
[347466983,1735840246207,-500.0,0.0002,3]
[347466984,1735840246216,-513.49,0.0002,3]
[347466985,1735840246226,-502.40030029,0.0002,3]
[347466986,1735840246235,-516.87,0.0002,3]
[347466987,1735840246245,-500.0,0.0002,3]
[347466988,1735840246255,-3747.4,0.0002,3]
[347466989,1735840246265,-500.0,0.0002,3]
[347466990,1735840246277,-391.98055827,0.0002,3]
[347466991,1735840246287,-500.0,0.0002,3]
[347466992,1735840246297,-500.0,0.0002,3]
[347466994,1735840246308,-785.17,0.0002,3]
[347466996,1735840246318,-500.0,0.0002,3]
[347466998,1735840246327,-500.0,0.0002,3]
[347467000,1735840246336,-500.0,0.0002,3]
[347467002,1735840246345,-513.8605633,0.0002,3]
[347467004,1735840246354,-201.17480925,0.0002,3]
[347467006,1735840246363,-500.0,0.0002,3]
[347467008,1735840246371,-500.0,0.0002,3]
[347467010,1735840246381,-500.0,0.0002,3]
[347467012,1735840246390,-500.0,0.0002,3]
[347467014,1735840246399,-500.0,0.0002,3]
[347467016,1735840246408,-839.69,0.0002,2]
[347467017,1735840246418,-500.0,0.0002,3]
[347467019,1735840246427,-1311.58,0.0002,3]
[347467021,1735840246437,-176.89217592,0.0002,3]
[347467022,1735840246447,-500.0,0.0002,3]
[347467024,1735840246459,-500.0,0.0002,3]
[347467025,1735840246467,-5371.55,0.0002,3]
[347467027,1735840246477,-557.31,0.0002,3]
[347467030,1735840246486,-760.81,0.0002,3]
[347467032,1735840246497,-2589.75,0.0002,3]
[347467033,1735840246506,-500.0,0.0002,3]
[347467035,1735840246515,-500.0,0.0002,3]
[347467037,1735840246526,-500.0,0.0002,3]
[347467038,1735840246535,-500.0,0.0002,3]
[347467039,1735840246544,-732.2,0.0002,3]
[347467040,1735840246553,-1290.52,0.0002,3]
[347467041,1735840246566,-500.0,0.0002,3]
[347467042,1735840246575,-500.0,0.0002,3]
[347467043,1735840246584,-500.0,0.0002,3]
[347467044,1735840246594,-500.0,0.0002,3]
[347467045,1735840246602,-500.0,0.0002,3]
[347467046,1735840246612,-500.0,0.0002,3]
[347467047,1735840246621,-500.0,0.0002,3]
[347467048,1735840246631,-551.9,0.0002,3]
[347467049,1735840246640,-500.0,0.0002,3]
[347467050,1735840246649,-500.0,0.0002,3]
[347467051,1735840246659,-2297.59,0.0002,3]
[347467052,1735840246668,-1810.88,0.0002,3]
[347467053,1735840246677,-1100.94,0.0002,3]
[347467054,1735840246687,-500.0,0.0002,3]
[347467055,1735840246697,-602.95,0.0002,3]
[347467056,1735840246706,-1594.97,0.0002,3]
[347467057,1735840246716,-500.0,0.0002,3]
[347467058,1735840246727,-500.0,0.0002,3]
[347467059,1735840246736,-500.0,0.0002,3]
[347467060,1735840246745,-501.23718737,0.0002,3]
[347467061,1735840246755,-500.0,0.0002,3]
[347467062,1735840246765,-500.0,0.0002,3]
[347467063,1735840246774,-718.33236785,0.00020058,2]
[347467064,1735840246783,-420.0,0.00020096,2]
[347467065,1735840246792,-763.54214441,0.00020173,2]
[347467066,1735840246802,-151.0,0.000202,3]
[347467067,1735840246814,-718.33236785,0.00020216,2]
[347467068,1735840246823,-500.0,0.00020272,3]
[347467069,1735840246832,-500.0,0.00020272,3]
[347467070,1735840246842,-500.0,0.00020273,3]
[347467071,1735840246851,-812.71,0.00020273,3]
[347467072,1735840246860,-500.0,0.00020273,3]
[347467073,1735840246869,-500.0,0.00020273,3]
[347467074,1735840246879,-500.0,0.00020273,3]
[347467075,1735840246888,-500.0,0.00020273,3]
[347467076,1735840246897,-500.0,0.00020273,3]
[347467077,1735840246906,-500.0,0.00020273,3]
[347467078,1735840246916,-500.0,0.00020273,3]
[347467079,1735840246925,-500.0,0.00020273,3]
[347467080,1735840246934,-500.0,0.00020273,3]
[347467081,1735840246944,-500.0,0.00020273,3]
[347467082,1735840246954,-500.0,0.00020273,3]
[347467083,1735840246962,-500.0,0.00020273,3]
[347467084,1735840246971,-500.0,0.00020273,3]
[347467085,1735840246981,-500.0,0.00020273,3]
[347467086,1735840246991,-500.0,0.00020273,3]
[347467087,1735840246999,-545.59944576,0.00020273,3]
[347467088,1735840247009,-500.0,0.00020273,3]
[347467089,1735840247018,-500.0,0.00020273,3]
[347467090,1735840247028,-500.0,0.00020273,3]
[347467091,1735840247037,-500.0,0.00020273,3]
[347467092,1735840247046,-500.0,0.00020273,3]
[347467093,1735840247057,-517.25,0.00020273,3]
[347467094,1735840247066,-500.0,0.00020273,3]
[347467095,1735840247148,-500.0,0.00020273,3]
[347467096,1735840247159,-487.97274998,0.00020273,3]
[347467097,1735840247168,-500.0,0.00020273,3]
[347467098,1735840247177,-500.0,0.00020273,3]
[347467099,1735840247186,-500.0,0.00020273,3]
[347467100,1735840247196,-916.43,0.00020273,3]
[347467101,1735840247205,-500.0,0.00020273,3]
[347467102,1735840247214,-500.0,0.00020273,3]
[347467103,1735840247223,-500.0,0.00020273,3]
[347467104,1735840247233,-500.0,0.00020273,3]
[347467105,1735840247242,-500.0,0.00020273,3]
[347467106,1735840247252,-516.59196204,0.00020273,3]
[347467107,1735840247262,-500.0,0.00020273,3]
[347467108,1735840247271,-500.0,0.00020273,3]
[347467109,1735840247281,-500.0,0.00020273,3]
[347467110,1735840247291,-500.0,0.00020273,3]
[347467111,1735840247300,-500.0,0.00020273,3]
[347467112,1735840247312,-500.0,0.00020273,3]
[347467113,1735840247322,-500.0,0.00020273,3]
[347467114,1735840247331,-500.0,0.00020273,3]
[347467115,1735840247341,-500.0,0.00020273,3]
[347467116,1735840247351,-500.0,0.00020273,3]
[347467117,1735840247360,-452.6687541,0.00020273,3]
[347467118,1735840247370,-500.0,0.00020273,3]
[347467119,1735840247379,-500.0,0.00020273,3]
[347467120,1735840247388,-500.0,0.00020273,3]
[347467121,1735840247402,-500.0,0.00020273,3]
[347467122,1735840247411,-500.0,0.00020273,3]
[347467123,1735840247420,-500.0,0.00020273,3]
[347467124,1735840247430,-500.0,0.00020273,3]
[347467125,1735840247439,-625.56,0.00020273,3]
[347467126,1735840247449,-500.0,0.00020273,3]
[347467127,1735840247470,-500.0,0.00020273,3]
[347467128,1735840247482,-500.0,0.00020273,3]
[347467129,1735840247492,-500.0,0.00020273,3]
[347467130,1735840247502,-500.0,0.00020273,3]
[347467131,1735840247512,-500.0,0.00020273,3]
[347467132,1735840247523,-500.0,0.00020273,3]
[347467133,1735840247537,-500.0,0.00020273,3]
[347467134,1735840247547,-500.0,0.00020273,3]
[347467135,1735840247560,-500.0,0.00020273,3]
[347467136,1735840247570,-500.0,0.00020273,3]
[347467137,1735840247580,-500.0,0.00020273,3]
[347467138,1735840247591,-500.0,0.00020273,3]
[347467139,1735840247601,-500.0,0.00020273,3]
[347467140,1735840247611,-503.23126151,0.00020273,3]
[347467141,1735840247621,-500.0,0.00020273,3]
[347467142,1735840247632,-390.87827738,0.00020273,3]
[347467143,1735840247642,-500.0,0.00020273,3]
[347467144,1735840247652,-500.0,0.00020273,2]
[347467145,1735840247662,-500.0,0.00020273,3]
[347467146,1735840247673,-500.0,0.00020273,3]
[347467147,1735840247683,-500.0,0.00020273,3]
[347467148,1735840247693,-500.0,0.00020273,3]
[347467149,1735840247704,-500.0,0.00020273,3]
[347467150,1735840247714,-500.0,0.00020273,3]
[347467151,1735840247723,-500.0,0.00020273,3]
[347467152,1735840247733,-500.0,0.00020273,3]
[347467153,1735840247744,-5641.06,0.00020273,3]
[347467154,1735840247754,-581.62,0.00020273,3]
[347467155,1735840247764,-500.0,0.00020273,3]
[347467156,1735840247774,-500.0,0.00020273,3]
[347467157,1735840247784,-21350.1,0.00020273,3]
[347467158,1735840247796,-500.0,0.00020273,2]
[347467159,1735840247806,-500.0,0.00020273,3]
[347467160,1735840247816,-739.51,0.00020273,3]
[347467161,1735840247825,-500.0,0.00020273,3]
[347467162,1735840247834,-500.0,0.00020273,3]
[347467163,1735840247844,-503.14722397,0.00020273,3]
[347467164,1735840247854,-2208.67,0.00020273,3]
[347467165,1735840247863,-500.0,0.00020273,3]
[347467166,1735840247873,-513.49,0.00020273,3]
[347467167,1735840247882,-516.87,0.00020273,3]
[347467168,1735840247892,-500.0,0.00020273,3]
[347467169,1735840247901,-3747.4,0.00020273,3]
[347467170,1735840247911,-500.0,0.00020273,3]
[347467171,1735840247921,-500.0,0.00020273,3]
[347467172,1735840247931,-500.0,0.00020273,3]
[347467173,1735840247940,-785.17,0.00020273,3]
[347467174,1735840247949,-500.0,0.00020273,3]
[347467175,1735840247959,-529.68,0.00020273,3]
[347467176,1735840247968,-500.0,0.00020273,3]
[347467177,1735840247978,-500.0,0.00020273,3]
[347467178,1735840247988,-499.0,0.00020273,2]
[347467179,1735840247997,-500.0,0.00020273,3]
[347467180,1735840248007,-839.69,0.00020273,2]
[347467181,1735840248017,-500.0,0.00020273,3]
[347467182,1735840248026,-1311.58,0.00020273,3]
[347467183,1735840248036,-500.0,0.00020273,3]
[347467184,1735840248045,-5371.55,0.00020273,3]
[347467185,1735840248056,-557.31,0.00020273,3]
[347467186,1735840248067,-760.81,0.00020273,3]
[347467187,1735840248077,-2589.75,0.00020273,3]
[347467188,1735840248087,-415.23321191,0.00020273,3]
[347467189,1735840248097,-500.0,0.00020273,3]
[347467190,1735840248106,-500.0,0.00020273,3]
[347467191,1735840248116,-500.0,0.00020273,3]
[347467192,1735840248126,-732.2,0.00020273,3]
[347467193,1735840248136,-1290.52,0.00020273,3]
[347467194,1735840248147,-500.0,0.00020273,3]
[347467195,1735840248157,-500.0,0.00020273,3]
[347467196,1735840248167,-500.0,0.00020273,3]
[347467197,1735840248178,-500.0,0.00020273,3]
[347467198,1735840248188,-500.0,0.00020273,3]
[347467199,1735840248198,-500.0,0.00020273,3]
[347467200,1735840248209,-500.0,0.00020273,3]
[347467201,1735840248219,-551.9,0.00020273,3]
[347467202,1735840248229,-500.0,0.00020273,3]
[347467203,1735840248239,-2297.59,0.00020273,3]
[347467204,1735840248250,-1810.88,0.00020273,3]
[347467205,1735840248260,-1100.94,0.00020273,3]
[347467206,1735840248270,-500.0,0.00020273,3]
[347467207,1735840248279,-602.95,0.00020273,3]
[347467208,1735840248291,-1594.97,0.00020273,3]
[347467209,1735840248306,-500.0,0.00020273,3]
[347467210,1735840248315,-500.0,0.00020273,3]
[347467211,1735840248325,-500.0,0.00020273,3]
[347467212,1735840248336,-500.0,0.00020273,3]
[347467213,1735840248346,-500.0,0.00020321,2]
[347467214,1735840248357,-718.33236785,0.00020374,2]
[347467215,1735840248367,-214.560947,0.00020447,2]
[347467216,1735840248376,-175.353753,0.00020521,2]
[347467217,1735840248387,-718.33236785,0.00020532,2]
[347467218,1735840248500,-500.0,0.00020546,3]
[347467219,1735840248510,-812.71,0.00020547,3]
[347467220,1735840248520,-500.0,0.00020547,3]
[347467221,1735840248532,-500.0,0.00020547,3]
[347467222,1735840248542,-500.0,0.00020547,3]
[347467223,1735840248551,-500.0,0.00020547,3]
[347467224,1735840248562,-500.0,0.00020547,3]
[347467225,1735840248571,-237.87456667,0.00020547,3]
[347467226,1735840248581,-500.0,0.00020547,3]
[347467227,1735840248590,-500.0,0.00020547,3]
[347467228,1735840248600,-500.0,0.00020547,3]
[347467229,1735840248609,-582.48,0.00020547,3]
[347467230,1735840248619,-500.0,0.00020547,3]
[347467231,1735840248628,-500.0,0.00020547,3]
[347467232,1735840248638,-335.01799521,0.00020547,3]
[347467233,1735840248647,-500.0,0.00020547,3]
[347467234,1735840248657,-517.25,0.00020547,3]
[347467235,1735840248666,-500.0,0.00020547,3]
[347467236,1735840248676,-500.0,0.00020547,3]
[347467237,1735840248685,-500.0,0.00020547,3]
[347467238,1735840248696,-500.0,0.00020547,3]
[347467239,1735840248707,-916.43,0.00020547,3]
[347467240,1735840248716,-500.0,0.00020547,3]
[347467241,1735840248725,-500.0,0.00020547,3]
[347467242,1735840248735,-500.0,0.00020547,3]
[347467243,1735840248745,-500.0,0.00020547,3]
[347467244,1735840248754,-500.0,0.00020547,3]
[347467245,1735840248763,-500.0,0.00020547,3]
[347467246,1735840248773,-632.34265268,0.00020547,3]
[347467247,1735840248783,-500.0,0.00020547,3]
[347467248,1735840248792,-566.14365039,0.00020547,3]
[347467249,1735840248802,-500.0,0.00020547,3]
[347467250,1735840248813,-500.0,0.00020547,3]
[347467251,1735840248823,-500.0,0.00020547,3]
[347467252,1735840248833,-500.0,0.00020547,3]
[347467253,1735840248843,-500.0,0.00020547,3]
[347467254,1735840248852,-500.0,0.00020547,3]
[347467255,1735840248862,-500.0,0.00020547,3]
[347467256,1735840248872,-500.0,0.00020547,3]
[347467257,1735840248882,-500.0,0.00020547,3]
[347467258,1735840248892,-617.85879928,0.00020547,3]
[347467259,1735840248901,-500.0,0.00020547,3]
[347467260,1735840248911,-500.0,0.00020547,3]
[347467261,1735840248920,-500.0,0.00020547,3]
[347467262,1735840248929,-500.0,0.00020547,3]
[347467263,1735840248939,-500.0,0.00020547,3]
[347467264,1735840248949,-500.0,0.00020547,3]
[347467265,1735840248958,-500.0,0.00020547,3]
[347467266,1735840248968,-530.46013505,0.00020547,3]
[347467267,1735840248977,-500.0,0.00020547,3]
[347467268,1735840248988,-500.0,0.00020547,3]
[347467269,1735840248997,-500.0,0.00020547,3]
[347467270,1735840249007,-500.0,0.00020547,3]
[347467271,1735840249017,-500.0,0.00020547,3]
[347467272,1735840249026,-500.0,0.00020547,3]
[347467273,1735840249036,-500.0,0.00020547,3]
[347467274,1735840249045,-503.20306418,0.00020547,3]
[347467275,1735840249056,-474.3091998,0.00020547,3]
[347467276,1735840249065,-500.0,0.00020547,3]
[347467277,1735840249075,-500.0,0.00020547,3]
[347467278,1735840249085,-500.0,0.00020547,3]
[347467279,1735840249094,-500.0,0.00020547,3]
[347467280,1735840249103,-500.0,0.00020547,3]
[347467281,1735840249113,-500.0,0.00020547,3]
[347467282,1735840249122,-500.0,0.00020547,3]
[347467283,1735840249132,-5641.06,0.00020547,3]
[347467284,1735840249142,-581.62,0.00020547,3]
[347467285,1735840249151,-500.0,0.00020547,3]
[347467286,1735840249161,-502.83384756,0.00020547,3]
[347467287,1735840249171,-21350.1,0.00020547,3]
[347467288,1735840249180,-500.0,0.00020547,3]
[347467289,1735840249190,-500.0,0.00020547,2]
[347467290,1735840249200,-739.51,0.00020547,3]
[347467291,1735840249210,-312.7775773,0.00020547,3]
[347467292,1735840249220,-500.0,0.00020547,3]
[347467293,1735840249229,-2208.67,0.00020547,3]
[347467294,1735840249239,-500.0,0.00020547,3]
[347467295,1735840249248,-513.49,0.00020547,3]
[347467296,1735840249258,-516.87,0.00020547,3]
[347467297,1735840249267,-500.0,0.00020547,3]
[347467298,1735840249277,-3747.4,0.00020547,3]
[347467299,1735840249287,-500.0,0.00020547,3]
[347467300,1735840249297,-500.0,0.00020547,3]
[347467301,1735840249307,-785.17,0.00020547,3]
[347467302,1735840249317,-506.87969092,0.00020547,3]
[347467303,1735840249326,-500.0,0.00020547,3]
[347467304,1735840249337,-500.0,0.00020547,3]
[347467305,1735840249347,-839.69,0.00020547,2]
[347467306,1735840249356,-500.0,0.00020547,3]
[347467307,1735840249366,-1311.58,0.00020547,3]
[347467308,1735840249376,-557.31,0.00020547,3]
[347467309,1735840249386,-5371.55,0.00020547,3]
[347467310,1735840249395,-500.0,0.00020547,3]
[347467311,1735840249405,-760.81,0.00020547,3]
[347467312,1735840249415,-2589.75,0.00020547,3]
[347467313,1735840249425,-500.0,0.00020547,3]
[347467314,1735840249435,-500.0,0.00020547,3]
[347467315,1735840249447,-500.0,0.00020547,3]
[347467316,1735840249458,-732.2,0.00020547,3]
[347467317,1735840249467,-1290.52,0.00020547,3]
[347467318,1735840249476,-500.0,0.00020547,3]
[347467319,1735840249485,-500.0,0.00020547,3]
[347467320,1735840249495,-500.0,0.00020547,3]
[347467321,1735840249506,-500.0,0.00020547,3]
[347467322,1735840249516,-551.9,0.00020547,3]
[347467323,1735840249526,-443.02053533,0.00020547,3]
[347467324,1735840249535,-1953.34114712,0.00020547,3]
[347467325,1735840249855,-500.0,0.00019177,2]
[347467326,1735840249864,-500.0,0.00019178,2]
[347467327,1735840249874,-500.0,0.00019178,2]
[347467328,1735840249883,-500.0,0.00019452,3]
[347467329,1735840249892,-344.24885288,0.00020547,3]
[347467330,1735840249902,-1810.88,0.00020547,3]
[347467331,1735840249911,-1100.94,0.00020547,3]
[347467332,1735840249920,-500.0,0.00020547,3]
[347467333,1735840249930,-602.95,0.00020547,3]
[347467334,1735840249939,-1594.97,0.00020547,3]
[347467335,1735840249948,-500.0,0.00020547,3]
[347467336,1735840249958,-500.0,0.00020547,3]
[347467337,1735840249967,-500.0,0.00020547,3]
[347467338,1735840249976,-718.33236785,0.00020689,2]
[347467339,1735840249986,-175.353753,0.0002074,2]
[347467340,1735840249995,-151.0,0.000208,4]
[347467341,1735840250004,-151.0,0.00020814,6]
[347467342,1735840250014,-812.71,0.00020821,3]
[347467343,1735840250024,-500.0,0.00020821,3]
[347467344,1735840250035,-500.0,0.00020821,3]
[347467345,1735840250044,-426.63,0.00020821,3]
[347467346,1735840250053,-500.0,0.00020821,3]
[347467347,1735840250064,-500.0,0.00020821,3]
[347467348,1735840250074,-500.0,0.00020821,3]
[347467349,1735840250083,-517.25,0.00020821,3]
[347467350,1735840250092,-500.0,0.00020821,3]
[347467351,1735840250102,-500.0,0.00020821,3]
[347467352,1735840250111,-500.0,0.00020821,3]
[347467353,1735840250121,-500.0,0.00020821,3]
[347467354,1735840250130,-916.43,0.00020821,3]
[347467355,1735840250140,-624.88,0.00020821,3]
[347467356,1735840250150,-179.5603586,0.00020821,3]
[347467357,1735840250160,-500.0,0.00020821,3]
[347467358,1735840250169,-500.0,0.00020821,3]
[347467359,1735840250178,-500.0,0.00020821,3]
[347467360,1735840250187,-514.34,0.00020821,3]
[347467361,1735840250197,-500.0,0.00020821,3]
[347467362,1735840250206,-500.0,0.00020821,3]
[347467363,1735840250215,-586.81871796,0.00020821,3]
[347467364,1735840250225,-500.0,0.00020821,3]
[347467365,1735840250234,-358.89,0.00020821,3]
[347467366,1735840250243,-500.0,0.00020821,3]
[347467367,1735840250253,-202.64,0.00020821,3]
[347467368,1735840250262,-500.0,0.00020821,3]
[347467369,1735840250271,-500.0,0.00020821,3]
[347467370,1735840250280,-530.40897516,0.00020821,3]
[347467371,1735840250291,-500.0,0.00020821,3]
[347467372,1735840250300,-500.0,0.00020821,3]
[347467373,1735840250311,-500.0,0.00020821,3]
[347467374,1735840250320,-500.0,0.00020821,3]
[347467375,1735840250330,-500.0,0.00020821,3]
[347467376,1735840250339,-198.81,0.00020821,3]
[347467377,1735840250348,-500.0,0.00020821,3]
[347467378,1735840250358,-500.0,0.00020821,3]
[347467379,1735840250367,-500.0,0.00020821,3]
[347467380,1735840250377,-5641.06,0.00020821,3]
[347467381,1735840250386,-581.62,0.00020821,3]
[347467382,1735840250396,-500.0,0.00020821,3]
[347467383,1735840250405,-21350.1,0.00020821,3]
[347467384,1735840250414,-500.0,0.00020821,2]
[347467385,1735840250424,-739.51,0.00020821,3]
[347467386,1735840250434,-500.0,0.00020821,3]
[347467387,1735840250444,-2208.67,0.00020821,3]
[347467388,1735840250458,-500.0,0.00020821,3]
[347467389,1735840250468,-513.49,0.00020821,3]
[347467390,1735840250478,-516.87,0.00020821,3]
[347467391,1735840250489,-500.0,0.00020821,3]
[347467392,1735840250499,-3747.4,0.00020821,3]
[347467393,1735840250509,-500.0,0.00020821,3]
[347467394,1735840250518,-785.17,0.00020821,3]
[347467395,1735840250529,-500.0,0.00020821,3]
[347467396,1735840250539,-839.69,0.00020821,2]
[347467397,1735840250549,-500.0,0.00020821,3]
[347467398,1735840250559,-1311.58,0.00020821,3]
[347467399,1735840250569,-557.31,0.00020821,3]
[347467400,1735840250578,-5371.55,0.00020821,3]
[347467401,1735840250588,-500.0,0.00020821,3]
[347467402,1735840250597,-760.81,0.00020821,3]
[347467403,1735840250607,-2589.75,0.00020821,3]
[347467404,1735840250616,-566.18,0.00020821,3]
[347467405,1735840250626,-504.12859687,0.00020821,3]
[347467406,1735840250636,-732.2,0.00020821,3]
[347467407,1735840250645,-1290.52,0.00020821,3]
[347467408,1735840250654,-500.0,0.00020821,3]
[347467409,1735840250664,-500.0,0.00020821,3]
[347467410,1735840250674,-500.0,0.00020821,3]
[347467411,1735840250683,-551.9,0.00020821,3]
[347467412,1735840250693,-2297.59,0.00020821,3]
[347467413,1735840250702,-1810.88,0.00020821,3]
[347467414,1735840250711,-500.0,0.00020821,3]
[347467415,1735840250721,-1100.94,0.00020821,3]
[347467416,1735840250730,-602.95,0.00020821,3]
[347467417,1735840250739,-1594.97,0.00020821,3]
[347467418,1735840250748,-500.0,0.00020821,3]
[347467419,1735840250757,-500.0,0.00020821,3]
[347467420,1735840250767,-500.0,0.00020821,3]
[347467421,1735840250835,-718.33236785,0.00020847,2]
[347467422,1735840250849,-12237.80817479,0.00020938,2]
[347467423,1735840250858,-175.353753,0.00020959,2]
[347467424,1735840250867,-718.33236785,0.00021005,2]
[347467425,1735840250877,-151.0,0.00021082,6]
[347467426,1735840250886,-812.71,0.00021095,3]
[347467427,1735840250895,-500.0,0.00021095,3]
[347467428,1735840250904,-500.0,0.00021095,3]
[347467429,1735840250914,-644.88901626,0.00021095,3]